[Event "MČR juniorů a juniorek v rapid šachu 2024"]
[Site "Hotel Fit Fun, Harrachov, Czech Republic"]
[Date "2024.09.21"]
[Round "5.19"]
[White "Stary Simon"]
[Black "Sadil Antonin"]
[Result "0-1"]
[TimeControl "20+5"]
[WhiteFideId "23734353"]
[BlackFideId "23735597"]
[WhiteElo "1866"]
[BlackElo "1784"]

1. e4 {[%clk 00:20:09]} {[%emt 00:00:01]} c5 {[%clk 00:20:09]} {[%emt
00:00:02]} 2. Nf3 {[%clk 00:20:12]} {[%emt 00:00:01]} d6 {[%clk 00:20:13]}
{[%emt 00:00:01]} 3. d4 {[%clk 00:20:16]} {[%emt 00:00:01]} cxd4 {[%clk
00:20:17]} {[%emt 00:00:01]} 4. Nxd4 {[%clk 00:20:20]} {[%emt 00:00:01]} Nf6
{[%clk 00:20:19]} {[%emt 00:00:02]} 5. Nc3 {[%clk 00:20:24]} {[%emt 00:00:02]}
g6 {[%clk 00:20:23]} {[%emt 00:00:01]} 6. Be3 {[%clk 00:20:24]} {[%emt
00:00:05]} Bg7 {[%clk 00:20:27]} {[%emt 00:00:02]} 7. f3 {[%clk 00:20:27]}
{[%emt 00:00:02]} O-O {[%clk 00:20:29]} {[%emt 00:00:02]} 8. Qd2 {[%clk
00:20:31]} Nc6 {[%clk 00:20:33]} {[%emt 00:00:01]} 9. O-O-O {[%clk 00:20:33]}
{[%emt 00:00:03]} d5 {[%clk 00:20:36]} {[%emt 00:00:02]} 10. exd5 {[%clk
00:20:26]} {[%emt 00:00:12]} Nxd5 {[%clk 00:20:38]} {[%emt 00:00:02]} 11. Nxc6
{[%clk 00:20:28]} {[%emt 00:00:04]} bxc6 {[%clk 00:20:41]} {[%emt 00:00:02]} 12.
Bd4 {[%clk 00:20:31]} {[%emt 00:00:02]} e5 {[%clk 00:20:44]} {[%emt 00:00:02]}
13. Bc5 {[%clk 00:20:35]} Re8 {[%clk 00:20:43]} {[%emt 00:00:06]} 14. Ne4
{[%clk 00:20:00]} {[%emt 00:00:40]} Qc7 {[%clk 00:20:04]} {[%emt 00:00:44]} 15.
Bc4 {[%clk 00:17:32]} {[%emt 00:02:33]} Be6 {[%clk 00:20:01]} {[%emt 00:00:08]}
16. Bb3 {[%clk 00:16:57]} {[%emt 00:00:40]} a5 {[%clk 00:19:13]} {[%emt
00:00:53]} 17. a4 {[%clk 00:16:01]} {[%emt 00:01:01]} Rad8 {[%clk 00:17:38]}
{[%emt 00:01:39]} 18. Qf2 {[%clk 00:15:58]} {[%emt 00:00:08]} Ra8 {[%clk
00:13:57]} {[%emt 00:03:47]} 19. Kb1 {[%clk 00:15:59]} {[%emt 00:00:03]} Nf4
{[%clk 00:13:53]} {[%emt 00:00:10]} 20. Bxe6 {[%clk 00:15:26]} {[%emt
00:00:38]} Nxe6 {[%clk 00:13:52]} {[%emt 00:00:06]} 21. Bb6 {[%clk 00:15:14]}
{[%emt 00:00:16]} Qe7 {[%clk 00:13:32]} {[%emt 00:00:25]} 22. g4 {[%clk
00:13:45]} {[%emt 00:01:34]} Qb4 {[%clk 00:12:57]} {[%emt 00:00:39]} 23. c3
{[%clk 00:11:46]} {[%emt 00:02:05]} Qxa4 {[%clk 00:12:37]} {[%emt 00:00:25]} 24.
Rd7 {[%clk 00:11:23]} {[%emt 00:00:28]} c5 {[%clk 00:10:52]} {[%emt 00:01:50]}
25. Rhd1 {[%clk 00:10:29]} {[%emt 00:00:59]} Rab8 {[%clk 00:09:48]} {[%emt
00:01:09]} 26. Nxc5 {[%clk 00:09:31]} {[%emt 00:01:02]} Nxc5 {[%clk 00:08:55]}
{[%emt 00:00:59]} 27. Qxc5 {[%clk 00:09:35]} {[%emt 00:00:01]} Bf8 {[%clk
00:07:55]} {[%emt 00:01:05]} 28. Qxa5 {[%clk 00:08:33]} {[%emt 00:01:08]} Qb3
{[%clk 00:07:52]} {[%emt 00:00:07]} 29. Rd8 {[%clk 00:07:29]} {[%emt 00:01:09]}
Rxb6 {[%clk 00:07:40]} {[%emt 00:00:18]} 30. Qxb6 {[%clk 00:07:18]} {[%emt
00:00:15]} Qxb6 {[%clk 00:07:33]} {[%emt 00:00:12]} 31. Rxe8 {[%clk 00:07:22]}
{[%emt 00:00:01]} Kg7 {[%clk 00:06:56]} {[%emt 00:00:42]} 32. Rxe5 {[%clk
00:06:41]} {[%emt 00:00:46]} Qb7 {[%clk 00:06:16]} {[%emt 00:00:45]} 33. Re4
{[%clk 00:06:31]} {[%emt 00:00:15]} Be7 {[%clk 00:05:55]} {[%emt 00:00:26]} 34.
Rde1 {[%clk 00:06:00]} {[%emt 00:00:36]} Bf6 {[%clk 00:05:56]} {[%emt
00:00:03]} 35. R1e3 {[%clk 00:05:44]} {[%emt 00:00:22]} Qd5 {[%clk 00:05:43]}
{[%emt 00:00:18]} 36. Kc2 {[%clk 00:05:16]} {[%emt 00:00:33]} Qa5 {[%clk
00:05:21]} {[%emt 00:00:26]} 37. f4 {[%emt 00:00:44]} h6 {[%clk 00:05:02]}
{[%emt 00:00:20]} 38. h3 {[%clk 00:04:12]} {[%emt 00:00:36]} Qa6 {[%clk
00:04:49]} {[%emt 00:00:18]} 39. f5 {[%clk 00:03:10]} {[%emt 00:01:06]} Bg5
{[%clk 00:03:23]} {[%emt 00:01:31]} 40. Re2 {[%clk 00:03:10]} {[%emt 00:00:06]}
gxf5 {[%clk 00:03:03]} {[%emt 00:00:24]} 41. gxf5 {[%clk 00:03:13]} {[%emt
00:00:02]} Qb5 {[%clk 00:02:04]} {[%emt 00:01:04]} 42. h4 {[%clk 00:02:53]}
{[%emt 00:00:25]} Bf6 {[%clk 00:01:42]} {[%emt 00:00:27]} 43. Rf2 {[%clk
00:01:31]} {[%emt 00:01:27]} Kh7 {[%clk 00:01:10]} {[%emt 00:00:37]} 44. Rf3
{[%clk 00:00:16]} {[%emt 00:01:20]} Qc6 {[%clk 00:01:08]} {[%emt 00:00:07]} 45.
Rfe3 {[%clk 00:00:10]} {[%emt 00:00:11]} Qd5 {[%clk 00:01:04]} {[%emt
00:00:08]} 46. Re2 {[%clk 00:00:06]} {[%emt 00:00:10]} Qxf5 {[%clk 00:01:03]}
{[%emt 00:00:07]} 47. b4 {[%clk 00:00:08]} {[%emt 00:00:03]} Bxh4 {[%clk
00:00:52]} {[%emt 00:00:15]} 48. Kb3 {[%clk 00:00:11]} {[%emt 00:00:01]} Qd5+
{[%clk 00:00:40]} {[%emt 00:00:16]} 49. c4 {[%clk 00:00:09]} {[%emt 00:00:10]}
Qd1+ {[%clk 00:00:33]} {[%emt 00:00:11]} 50. Ka3 {[%clk 00:00:07]} {[%emt
00:00:08]} Bf6 {[%clk 00:00:22]} {[%emt 00:00:15]} 51. R4e3 {[%clk 00:00:06]}
{[%emt 00:00:07]} Qa1+ {[%clk 00:00:22]} {[%emt 00:00:04]} 52. Kb3 {[%clk
00:00:09]} {[%emt 00:00:02]} Qd1+ {[%clk 00:00:17]} {[%emt 00:00:09]} 53. Ka3
{[%clk 00:00:13]} {[%emt 00:00:02]} Qd4 {[%clk 00:00:18]} {[%emt 00:00:03]} 54.
c5 {[%clk 00:00:16]} {[%emt 00:00:03]} Qa1+ {[%clk 00:00:16]} {[%emt 00:00:06]}
55. Kb3 {[%clk 00:00:21]} Bd4 {[%clk 00:00:15]} {[%emt 00:00:07]} 56. Re4
{[%clk 00:00:14]} {[%emt 00:00:12]} Qc3+ {[%clk 00:00:10]} {[%emt 00:00:10]} 57.
Ka4 {[%clk 00:00:18]} {[%emt 00:00:01]} Bxc5 {[%clk 00:00:10]} {[%emt
00:00:04]} 58. Kb5 {[%clk 00:00:16]} {[%emt 00:00:07]} Bxb4 {[%clk 00:00:13]}
{[%emt 00:00:03]} 0-1



[ePGN "0.1;DGT LiveChess/2.2.6"]

[Event "MČR juniorů a juniorek v rapid šachu 2024"]
[Site "Hotel Fit Fun, Harrachov, Czech Republic"]
[Date "2024.09.21"]
[Round "5.2"]
[White "Lihotsky Lukas"]
[Black "Rousek Jan"]
[Result "1/2-1/2"]
[TimeControl "20+5"]
[WhiteFideId "23727004"]
[BlackFideId "386669"]
[WhiteElo "1975"]
[BlackElo "1958"]

1. d4 {[%clk 00:20:06]} {[%emt 00:00:03]} Nf6 {[%clk 00:20:05]} {[%emt
00:00:05]} 2. c4 {[%clk 00:20:10]} {[%emt 00:00:02]} g6 {[%clk 00:19:59]}
{[%emt 00:00:12]} 3. Nc3 {[%clk 00:20:10]} {[%emt 00:00:04]} d5 {[%clk
00:20:02]} {[%emt 00:00:02]} 4. cxd5 {[%clk 00:20:13]} {[%emt 00:00:02]} Nxd5
{[%clk 00:20:06]} {[%emt 00:00:01]} 5. e4 {[%clk 00:20:17]} Nxc3 {[%clk
00:20:09]} {[%emt 00:00:02]} 6. bxc3 {[%clk 00:20:21]} Bg7 {[%clk 00:20:11]}
{[%emt 00:00:04]} 7. Bc4 {[%clk 00:20:25]} {[%emt 00:00:01]} c5 {[%clk
00:20:05]} {[%emt 00:00:11]} 8. Ne2 {[%clk 00:20:28]} {[%emt 00:00:02]} Nc6
{[%clk 00:19:32]} {[%emt 00:00:38]} 9. Be3 {[%clk 00:20:32]} {[%emt 00:00:01]}
O-O {[%clk 00:18:06]} {[%emt 00:01:31]} 10. O-O {[%clk 00:20:34]} {[%emt
00:00:03]} cxd4 {[%clk 00:15:58]} {[%emt 00:02:13]} 11. cxd4 {[%clk 00:20:37]}
{[%emt 00:00:02]} b6 {[%clk 00:15:15]} {[%emt 00:00:49]} 12. Qd2 {[%clk
00:18:43]} {[%emt 00:01:59]} Bb7 {[%clk 00:14:38]} {[%emt 00:00:41]} 13. Rac1
{[%clk 00:17:36]} {[%emt 00:01:11]} Rc8 {[%clk 00:14:21]} {[%emt 00:00:22]} 14.
Rfd1 {[%clk 00:16:42]} {[%emt 00:00:59]} Na5 {[%clk 00:13:33]} {[%emt
00:00:53]} 15. Bd3 {[%clk 00:16:45]} {[%emt 00:00:03]} Qd7 {[%clk 00:13:07]}
{[%emt 00:00:29]} 16. Bh6 {[%clk 00:15:21]} {[%emt 00:01:30]} Rxc1 {[%clk
00:12:46]} {[%emt 00:00:26]} 17. Rxc1 {[%clk 00:15:18]} {[%emt 00:00:09]} Rc8
{[%clk 00:12:47]} {[%emt 00:00:02]} 18. Bxg7 {[%clk 00:15:06]} {[%emt
00:00:18]} Kxg7 {[%clk 00:12:50]} {[%emt 00:00:02]} 19. f3 {[%clk 00:13:37]}
{[%emt 00:01:34]} Rxc1+ {[%clk 00:10:05]} {[%emt 00:02:49]} 20. Qxc1 {[%clk
00:13:39]} {[%emt 00:00:04]} Qc8 {[%clk 00:09:13]} {[%emt 00:00:58]} 21. Qb2
{[%clk 00:12:42]} {[%emt 00:01:02]} Ba6 {[%clk 00:08:48]} {[%emt 00:00:29]} 22.
Bxa6 {[%clk 00:12:20]} {[%emt 00:00:27]} Qxa6 {[%clk 00:08:51]} {[%emt
00:00:02]} 23. d5+ {[%clk 00:12:17]} {[%emt 00:00:09]} f6 {[%clk 00:08:09]}
{[%emt 00:00:47]} 24. Nd4 {[%clk 00:11:19]} {[%emt 00:01:02]} Qd3 {[%clk
00:06:16]} {[%emt 00:01:57]} 25. Ne6+ {[%clk 00:11:17]} {[%emt 00:00:08]} Kf7
{[%clk 00:05:40]} {[%emt 00:00:40]} 26. h3 {[%clk 00:09:49]} {[%emt 00:01:34]}
Nc4 {[%clk 00:04:36]} {[%emt 00:01:08]} 27. Qb5 {[%clk 00:09:08]} {[%emt
00:00:46]} Ne5 {[%clk 00:03:15]} {[%emt 00:01:27]} 28. Nd8+ {[%clk 00:08:39]}
{[%emt 00:00:34]} Kf8 {[%clk 00:02:54]} {[%emt 00:00:26]} 29. Ne6+ {[%clk
00:08:29]} {[%emt 00:00:14]} Kf7 {[%clk 00:02:54]} {[%emt 00:00:05]} 30. Nd8+
{[%clk 00:07:15]} {[%emt 00:01:20]} Kf8 {[%clk 00:02:58]} {[%emt 00:00:02]} 31.
Ne6+ {[%clk 00:04:23]} {[%emt 00:02:57]} 1/2-1/2



[ePGN "0.1;DGT LiveChess/2.2.6"]

[Event "MČR juniorů a juniorek v rapid šachu 2024"]
[Site "Hotel Fit Fun, Harrachov, Czech Republic"]
[Date "2024.09.21"]
[Round "5.20"]
[White "Nagyova Daniela"]
[Black "Husa Daniel"]
[Result "1-0"]
[TimeControl "20+5"]
[WhiteFideId "390070"]
[BlackFideId "393487"]
[WhiteElo "1787"]
[BlackElo "1866"]

1. e4 {[%clk 00:20:07]} {[%emt 00:00:03]} c5 {[%clk 00:19:20]} {[%emt
00:00:45]} 2. Nf3 {[%clk 00:20:09]} {[%emt 00:00:07]} e6 {[%clk 00:19:23]}
{[%emt 00:00:02]} 3. d4 {[%clk 00:20:12]} {[%emt 00:00:03]} cxd4 {[%clk
00:19:27]} {[%emt 00:00:01]} 4. Nxd4 {[%clk 00:20:14]} {[%emt 00:00:02]} Nf6
{[%clk 00:19:30]} {[%emt 00:00:02]} 5. Nc3 {[%clk 00:20:17]} {[%emt 00:00:03]}
Nc6 {[%clk 00:19:34]} {[%emt 00:00:01]} 6. Be2 {[%clk 00:20:18]} {[%emt
00:00:04]} Bb4 {[%clk 00:19:17]} {[%emt 00:00:21]} 7. O-O {[%clk 00:20:20]}
{[%emt 00:00:04]} O-O {[%clk 00:18:56]} {[%emt 00:00:25]} 8. Nxc6 {[%clk
00:20:21]} {[%emt 00:00:04]} bxc6 {[%clk 00:18:50]} {[%emt 00:00:11]} 9. e5
{[%clk 00:20:09]} {[%emt 00:00:17]} Nd5 {[%clk 00:18:32]} {[%emt 00:00:23]} 10.
Ne4 {[%clk 00:20:10]} {[%emt 00:00:04]} Qc7 {[%clk 00:18:00]} {[%emt 00:00:37]}
11. Nd6 {[%clk 00:19:52]} {[%emt 00:00:22]} f6 {[%clk 00:17:13]} {[%emt
00:00:52]} 12. c4 {[%clk 00:18:15]} {[%emt 00:01:43]} Nb6 {[%clk 00:15:26]}
{[%emt 00:01:53]} 13. a3 {[%clk 00:16:51]} {[%emt 00:01:28]} Bxd6 {[%clk
00:15:04]} {[%emt 00:00:27]} 14. exd6 {[%clk 00:16:47]} {[%emt 00:00:09]} Qd8
{[%clk 00:14:15]} {[%emt 00:00:53]} 15. b4 {[%clk 00:15:17]} {[%emt 00:01:35]}
Bb7 {[%clk 00:13:28]} {[%emt 00:00:53]} 16. Be3 {[%clk 00:14:06]} {[%emt
00:01:16]} Qe8 {[%clk 00:11:09]} {[%emt 00:02:24]} 17. a4 {[%clk 00:12:23]}
{[%emt 00:01:49]} Qf7 {[%clk 00:09:26]} {[%emt 00:01:47]} 18. a5 {[%clk
00:12:11]} {[%emt 00:00:17]} Nc8 {[%clk 00:09:08]} {[%emt 00:00:23]} 19. a6
{[%clk 00:12:10]} {[%emt 00:00:06]} Rb8 {[%clk 00:08:55]} {[%emt 00:00:18]} 20.
axb7 {[%clk 00:12:03]} {[%emt 00:00:12]} Rxb7 {[%clk 00:08:57]} {[%emt
00:00:03]} 21. b5 {[%clk 00:11:08]} {[%emt 00:01:00]} cxb5 {[%clk 00:08:42]}
{[%emt 00:00:20]} 22. cxb5 {[%clk 00:11:02]} {[%emt 00:00:11]} Re8 {[%clk
00:07:27]} {[%emt 00:01:19]} 23. Qd3 {[%clk 00:09:18]} {[%emt 00:01:49]} Qf8
{[%clk 00:07:08]} {[%emt 00:00:24]} 24. Bf3 {[%clk 00:08:42]} {[%emt 00:00:41]}
Rb8 {[%clk 00:06:44]} {[%emt 00:00:30]} 25. Bxa7 {[%clk 00:08:35]} {[%emt
00:00:11]} Nxa7 {[%clk 00:06:32]} {[%emt 00:00:16]} 26. Rxa7 {[%clk 00:08:38]}
{[%emt 00:00:03]} Red8 {[%clk 00:06:28]} {[%emt 00:00:09]} 27. Rfa1 {[%clk
00:07:40]} {[%emt 00:01:03]} Rb6 {[%clk 00:06:16]} {[%emt 00:00:17]} 28. R1a6
{[%clk 00:06:46]} {[%emt 00:00:58]} Rdb8 {[%clk 00:06:02]} {[%emt 00:00:20]} 29.
Rxb6 {[%clk 00:06:29]} {[%emt 00:00:22]} Rxb6 {[%clk 00:06:02]} {[%emt
00:00:04]} 30. Rxd7 {[%clk 00:06:22]} {[%emt 00:00:12]} Qc8 {[%clk 00:05:00]}
{[%emt 00:01:07]} 31. Rc7 {[%clk 00:06:20]} {[%emt 00:00:07]} Qd8 {[%clk
00:04:55]} {[%emt 00:00:11]} 32. d7 {[%clk 00:05:36]} {[%emt 00:00:49]} Rb8
{[%clk 00:04:46]} {[%emt 00:00:13]} 33. b6 {[%clk 00:05:13]} {[%emt 00:00:29]}
Kf7 {[%clk 00:04:21]} {[%emt 00:00:29]} 34. Qd6 {[%clk 00:04:49]} {[%emt
00:00:30]} g6 {[%clk 00:04:05]} {[%emt 00:00:21]} 35. b7 {[%clk 00:04:27]}
{[%emt 00:00:27]} 1-0



[ePGN "0.1;DGT LiveChess/2.2.6"]

[Event "MČR juniorů a juniorek v rapid šachu 2024"]
[Site "Hotel Fit Fun, Harrachov, Czech Republic"]
[Date "2024.09.21"]
[Round "5.21"]
[White "Fousek Petr"]
[Black "Martinkovic Adam"]
[Result "0-1"]
[TimeControl "20+5"]
[WhiteFideId "23736003"]
[BlackFideId "23728019"]
[WhiteElo "1731"]
[BlackElo "1841"]

1. e4 {[%clk 00:20:06]} {[%emt 00:00:03]} c6 {[%clk 00:20:09]} {[%emt
00:00:01]} 2. d4 {[%clk 00:20:01]} {[%emt 00:00:10]} d5 {[%clk 00:20:13]} 3. e5
{[%clk 00:20:04]} {[%emt 00:00:02]} Bf5 {[%clk 00:20:17]} {[%emt 00:00:01]} 4.
h4 {[%clk 00:20:07]} {[%emt 00:00:02]} h5 {[%clk 00:20:16]} {[%emt 00:00:06]} 5.
Bd3 {[%clk 00:20:10]} {[%emt 00:00:02]} Bxd3 {[%clk 00:20:14]} {[%emt
00:00:06]} 6. Qxd3 {[%clk 00:20:13]} {[%emt 00:00:02]} e6 {[%clk 00:20:18]}
{[%emt 00:00:02]} 7. Nf3 {[%clk 00:20:12]} {[%emt 00:00:06]} c5 {[%clk
00:19:42]} {[%emt 00:00:42]} 8. c3 {[%clk 00:20:15]} {[%emt 00:00:01]} Nc6
{[%clk 00:19:44]} {[%emt 00:00:03]} 9. a3 {[%clk 00:20:18]} {[%emt 00:00:02]}
Nh6 {[%clk 00:18:54]} {[%emt 00:00:55]} 10. b4 {[%clk 00:20:18]} {[%emt
00:00:05]} c4 {[%clk 00:17:37]} {[%emt 00:01:23]} 11. Qc2 {[%clk 00:20:14]}
{[%emt 00:00:09]} b5 {[%clk 00:17:29]} {[%emt 00:00:13]} 12. a4 {[%clk
00:20:14]} {[%emt 00:00:05]} a6 {[%clk 00:17:11]} {[%emt 00:00:22]} 13. Bg5
{[%clk 00:19:54]} {[%emt 00:00:24]} Be7 {[%clk 00:16:52]} {[%emt 00:00:24]} 14.
Nbd2 {[%clk 00:19:37]} {[%emt 00:00:22]} Nf5 {[%clk 00:16:33]} {[%emt
00:00:25]} 15. g3 {[%clk 00:19:24]} {[%emt 00:00:17]} f6 {[%clk 00:15:12]}
{[%emt 00:01:26]} 16. exf6 {[%clk 00:19:07]} {[%emt 00:00:22]} gxf6 {[%clk
00:15:08]} {[%emt 00:00:10]} 17. Bf4 {[%clk 00:19:10]} {[%emt 00:00:02]} Kf7
{[%clk 00:14:33]} {[%emt 00:00:40]} 18. a5 {[%clk 00:19:05]} {[%emt 00:00:09]}
Bd6 {[%clk 00:14:15]} {[%emt 00:00:23]} 19. Bxd6 {[%clk 00:19:02]} {[%emt
00:00:08]} Qxd6 {[%clk 00:13:58]} {[%emt 00:00:23]} 20. O-O-O {[%clk 00:19:04]}
{[%emt 00:00:03]} Ke7 {[%clk 00:13:35]} {[%emt 00:00:27]} 21. Rde1 {[%clk
00:18:58]} {[%emt 00:00:11]} Kd7 {[%clk 00:13:37]} {[%emt 00:00:04]} 22. Re2
{[%clk 00:19:00]} {[%emt 00:00:03]} Rae8 {[%clk 00:13:10]} {[%emt 00:00:31]} 23.
Rhe1 {[%clk 00:19:02]} {[%emt 00:00:03]} Nd8 {[%clk 00:12:59]} {[%emt
00:00:16]} 24. Nf1 {[%clk 00:18:41]} {[%emt 00:00:26]} Qf8 {[%clk 00:10:48]}
{[%emt 00:02:16]} 25. Ne3 {[%clk 00:18:22]} {[%emt 00:00:25]} Nxe3 {[%clk
00:10:10]} {[%emt 00:00:42]} 26. Rxe3 {[%clk 00:18:22]} {[%emt 00:00:05]} Qf7
{[%clk 00:10:11]} {[%emt 00:00:05]} 27. R3e2 {[%clk 00:18:04]} {[%emt
00:00:23]} Re7 {[%clk 00:09:49]} {[%emt 00:00:27]} 28. Qd2 {[%clk 00:18:05]}
{[%emt 00:00:03]} Qg6 {[%clk 00:09:02]} {[%emt 00:00:53]} 29. Qf4 {[%clk
00:17:51]} {[%emt 00:00:18]} Qh6 {[%clk 00:08:28]} {[%emt 00:00:39]} 30. Qxh6
{[%clk 00:17:29]} {[%emt 00:00:27]} Rxh6 {[%clk 00:08:31]} {[%emt 00:00:02]} 31.
Nd2 {[%clk 00:17:18]} {[%emt 00:00:16]} Rg6 {[%clk 00:08:19]} {[%emt 00:00:17]}
32. Nf1 {[%clk 00:17:19]} {[%emt 00:00:04]} Rgg7 {[%clk 00:07:49]} {[%emt
00:00:35]} 33. Ne3 {[%clk 00:17:19]} {[%emt 00:00:05]} Rgf7 {[%clk 00:06:59]}
{[%emt 00:00:55]} 34. Ng2 {[%clk 00:17:18]} {[%emt 00:00:06]} Kd6 {[%clk
00:05:35]} {[%emt 00:01:29]} 35. Nf4 {[%clk 00:17:14]} {[%emt 00:00:09]} Rh7
{[%clk 00:05:29]} {[%emt 00:00:11]} 36. Ng6 {[%clk 00:17:03]} {[%emt 00:00:17]}
Ref7 {[%clk 00:05:12]} {[%emt 00:00:21]} 37. Kd2 {[%clk 00:16:52]} {[%emt
00:00:17]} Rh6 {[%clk 00:05:08]} {[%emt 00:00:09]} 38. Nf4 {[%clk 00:16:39]}
{[%emt 00:00:18]} Re7 {[%clk 00:04:51]} {[%emt 00:00:21]} 39. Re3 {[%clk
00:16:19]} {[%emt 00:00:26]} Rhh7 {[%clk 00:04:42]} {[%emt 00:00:14]} 40. R1e2
{[%clk 00:16:14]} {[%emt 00:00:10]} Rh6 {[%clk 00:04:25]} {[%emt 00:00:21]} 41.
Ke1 {[%clk 00:16:17]} {[%emt 00:00:02]} e5 {[%clk 00:03:39]} {[%emt 00:00:51]}
42. Kf1 {[%clk 00:15:51]} {[%emt 00:00:31]} Nc6 {[%clk 00:03:24]} {[%emt
00:00:20]} 43. dxe5+ {[%clk 00:15:42]} {[%emt 00:00:14]} fxe5 {[%clk 00:03:18]}
{[%emt 00:00:11]} 44. Nh3 {[%clk 00:15:42]} {[%emt 00:00:06]} Rh8 {[%clk
00:03:00]} {[%emt 00:00:22]} 45. Ng5 {[%clk 00:15:35]} {[%emt 00:00:12]} Rhe8
{[%clk 00:02:59]} {[%emt 00:00:05]} 46. Rf3 {[%clk 00:15:21]} {[%emt 00:00:20]}
Kc7 {[%clk 00:02:24]} {[%emt 00:00:41]} 47. Rf6 {[%clk 00:14:47]} {[%emt
00:00:38]} d4 {[%clk 00:02:18]} {[%emt 00:00:12]} 48. cxd4 {[%clk 00:14:43]}
{[%emt 00:00:08]} exd4 {[%clk 00:02:22]} {[%emt 00:00:02]} 49. Ne6+ {[%clk
00:14:27]} {[%emt 00:00:21]} Kc8 {[%clk 00:01:08]} {[%emt 00:01:18]} 50. Nf4
{[%clk 00:14:26]} {[%emt 00:00:06]} Nxb4 {[%clk 00:00:21]} {[%emt 00:00:53]} 51.
Rd6 {[%clk 00:14:12]} {[%emt 00:00:18]} Rxe2 {[%clk 00:00:14]} {[%emt
00:00:12]} 52. Nxe2 {[%clk 00:14:16]} {[%emt 00:00:01]} Rd8 {[%clk 00:00:15]}
{[%emt 00:00:04]} 53. Rxd4 {[%clk 00:14:11]} {[%emt 00:00:09]} Rxd4 {[%clk
00:00:14]} {[%emt 00:00:06]} 54. Nxd4 {[%clk 00:14:15]} {[%emt 00:00:02]} Kd7
{[%clk 00:00:11]} {[%emt 00:00:08]} 55. Ke2 {[%clk 00:14:15]} {[%emt 00:00:05]}
Kd6 {[%clk 00:00:12]} {[%emt 00:00:04]} 56. f4 {[%clk 00:14:13]} {[%emt
00:00:08]} Kd5 {[%clk 00:00:10]} {[%emt 00:00:07]} 57. Ke3 {[%clk 00:14:13]}
{[%emt 00:00:04]} c3 {[%clk 00:00:11]} {[%emt 00:00:04]} 58. f5 {[%clk
00:14:11]} {[%emt 00:00:08]} Ke5 {[%clk 00:00:08]} {[%emt 00:00:08]} 59. g4
{[%clk 00:14:03]} {[%emt 00:00:13]} hxg4 {[%clk 00:00:10]} {[%emt 00:00:02]} 60.
h5 {[%clk 00:14:07]} {[%emt 00:00:01]} c2 {[%clk 00:00:14]} {[%emt 00:00:01]}
61. Nxc2 {[%clk 00:14:01]} {[%emt 00:00:12]} Nxc2+ {[%clk 00:00:18]} {[%emt
00:00:01]} 62. Kd2 {[%clk 00:14:01]} {[%emt 00:00:05]} Kxf5 {[%clk 00:00:19]}
{[%emt 00:00:03]} 63. Kxc2 {[%clk 00:14:01]} {[%emt 00:00:05]} Kg5 {[%clk
00:00:23]} 64. h6 {[%clk 00:14:05]} {[%emt 00:00:01]} Kxh6 {[%clk 00:00:27]} 65.
Kd3 {[%clk 00:14:10]} Kh5 {[%clk 00:00:31]} {[%emt 00:00:01]} 66. Ke3 {[%clk
00:14:14]} {[%emt 00:00:01]} Kh4 {[%clk 00:00:35]} 0-1



[ePGN "0.1;DGT LiveChess/2.2.6"]